fUST/lending_fUST_20250306
["ID","MTS","AMOUNT","RATE_DAILY","PERIOD"]
[355503483,1741207844642,-500.0,0.00038904,9]
[355503485,1741207844651,-500.0,0.00038904,9]
[355503487,1741207844661,-500.0,0.00038904,9]
[355503489,1741207844671,-200.0,0.00038904,7]
[355503491,1741207844680,-500.0,0.00038904,9]
[355503493,1741207844689,-500.0,0.00038904,9]
[355503494,1741207844699,-500.0,0.00038904,9]
[355503496,1741207844708,-500.0,0.00038904,9]
[355503498,1741207844718,-500.0,0.00038904,9]
[355503500,1741207844727,-500.0,0.00038904,9]
[355503502,1741207844741,-500.0,0.00038904,9]
[355503504,1741207844751,-500.0,0.00038904,9]
[355503505,1741207844762,-500.0,0.00038904,9]
[355503507,1741207844771,-1970.49,0.00038904,9]
[355503509,1741207844782,-500.0,0.00038904,9]
[355503511,1741207844791,-500.0,0.00038904,9]
[355503513,1741207844802,-500.0,0.00038904,9]
[355503515,1741207844811,-500.0,0.00038904,9]
[355503516,1741207844821,-500.0,0.00038904,9]
[355503518,1741207844830,-500.0,0.00038904,9]
[355503520,1741207844839,-500.0,0.00038904,9]
[355503522,1741207844850,-1707.61,0.00038904,9]
[355503524,1741207844859,-1509.18,0.00038904,9]
[355503526,1741207844868,-500.0,0.00038904,9]
[355503527,1741207844878,-572.11,0.00038904,9]
[355503529,1741207844887,-500.0,0.00038904,9]
[355503531,1741207844896,-3741.97,0.00038904,9]
[355503533,1741207844906,-500.0,0.00038904,9]
[355503535,1741207844915,-500.0,0.00038904,9]
[355503537,1741207844924,-500.0,0.00038904,9]
[355503538,1741207844933,-1075.02,0.00038904,9]
[355503540,1741207844942,-500.0,0.00038904,9]
[355503542,1741207844951,-1124.74,0.00038904,9]
[355503544,1741207844961,-500.0,0.00038904,9]
[355503546,1741207844970,-26395.19,0.00038904,7]
[355503548,1741207844980,-1720.33,0.00038904,9]
[355503550,1741207844989,-500.0,0.00038904,9]
[355503552,1741207844999,-500.0,0.00038904,9]
[355503554,1741207845009,-500.0,0.00038904,9]
[355503556,1741207845018,-411.21,0.00038904,9]
[355503558,1741207845027,-500.0,0.00038904,9]
[355503559,1741207845037,-500.0,0.00038904,9]
[355503561,1741207845046,-500.0,0.00038904,9]
[355503563,1741207845055,-500.0,0.00038904,9]
[355503565,1741207845064,-500.0,0.00038904,9]
[355503566,1741207845073,-629.3,0.00038904,9]
[355503568,1741207845082,-500.0,0.00038904,9]
[355503570,1741207845092,-905.36,0.00038904,9]
[355503572,1741207845101,-500.0,0.00038904,9]
[355503574,1741207845110,-520.64,0.00038904,9]
[355503576,1741207845119,-634.73,0.00038904,9]
[355503578,1741207845129,-500.0,0.00038904,9]
[355503580,1741207845138,-667.75,0.00038904,9]
[355503581,1741207845147,-500.0,0.00038904,9]
[355503583,1741207845157,-2881.98,0.00038904,9]
[355503585,1741207845166,-500.0,0.00038904,9]
[355503587,1741207845175,-500.0,0.00038904,9]
[355503589,1741207845185,-749.96,0.00038904,9]
[355503590,1741207845194,-500.0,0.00038904,9]
[355503592,1741207845204,-4449.63,0.00038904,9]
[355503594,1741207845213,-2459.83,0.00038904,9]
[355503596,1741207845223,-500.0,0.00038904,9]
[355503598,1741207845232,-500.0,0.00038904,9]
[355503600,1741207845241,-500.0,0.00038904,9]
[355503602,1741207845251,-677.95,0.00038904,9]
[355503603,1741207845262,-596.07,0.00039178,9]
[355503605,1741207845271,-500.0,0.00039178,9]
[355503607,1741207845281,-500.0,0.00039178,9]
[355503609,1741207845290,-500.0,0.00039178,9]
[355503611,1741207845300,-500.19643704,0.00039178,9]
[355503613,1741207845309,-352.55114146,0.00039178,9]
[355503614,1741207845319,-500.0,0.00039178,9]
[355503616,1741207845328,-500.0,0.00039178,9]
[355503618,1741207845337,-500.0,0.00039178,9]
[355503620,1741207845347,-500.0,0.00039178,9]
[355503622,1741207845356,-500.0,0.00039178,9]
[355503624,1741207845365,-500.0,0.00039178,9]
[355503627,1741207845374,-500.0,0.00039178,9]
[355503628,1741207845384,-550.5,0.00039178,9]
[355503630,1741207845393,-500.0,0.00039178,9]
[355503632,1741207845402,-500.0,0.00039178,9]
[355503634,1741207845412,-371.74206148,0.00039178,9]
[355503636,1741207845421,-500.0,0.00039178,9]
[355503638,1741207845431,-500.0,0.00039178,9]
[355503641,1741207845441,-500.0,0.00039178,9]
[355503643,1741207845450,-500.0,0.00039178,9]
[355503645,1741207845460,-500.0,0.00039178,9]
[355503647,1741207845470,-500.0,0.00039178,9]
[355503649,1741207845479,-500.0,0.00039178,9]
[355503651,1741207845489,-500.0,0.00039178,9]
[355503654,1741207845498,-500.0,0.00039178,9]
[355503657,1741207845507,-500.0,0.00039178,9]
[355503659,1741207845516,-500.0,0.00039178,9]
[355503660,1741207845526,-500.0,0.00039178,9]
[355503662,1741207845536,-500.0,0.00039178,9]
[355503664,1741207845546,-500.0,0.00039178,9]
[355503668,1741207845583,-500.0,0.00039178,9]
[355503670,1741207845592,-500.0,0.00039178,9]
[355503672,1741207845601,-500.0,0.00039178,9]
[355503674,1741207845610,-500.0,0.00039178,9]
[355503675,1741207845619,-500.0,0.00039178,9]
[355503677,1741207845628,-500.0,0.00039178,9]
[355503679,1741207845637,-500.0,0.00039178,9]
[355503681,1741207845647,-1798.42,0.00039178,9]
[355503683,1741207845656,-500.0,0.00039178,9]
[355503685,1741207845666,-509.48,0.00039178,9]
[355503686,1741207845675,-500.0,0.00039178,9]
[355503688,1741207845685,-500.0,0.00039178,9]
[355503690,1741207845694,-500.0,0.00039178,9]
[355503692,1741207845704,-500.0,0.00039178,9]
[355503694,1741207845713,-500.0,0.00039178,9]
[355503696,1741207845723,-500.0,0.00039178,9]
[355503698,1741207845732,-500.0,0.00039178,9]
[355503700,1741207845747,-500.0,0.00039178,9]
[355503702,1741207845756,-500.0,0.00039178,9]
[355503703,1741207845766,-500.0,0.00039178,9]
[355503705,1741207845775,-500.0,0.00039178,9]
[355503707,1741207845786,-500.0,0.00039178,9]
[355503709,1741207845796,-500.0,0.00039178,9]
[355503711,1741207845806,-500.0,0.00039178,9]
[355503713,1741207845815,-1970.49,0.00039178,9]
[355503715,1741207845825,-500.0,0.00039178,9]
[355503716,1741207845834,-500.0,0.00039178,9]
[355503718,1741207845843,-500.0,0.00039178,9]
[355503720,1741207845853,-500.0,0.00039178,9]
[355503722,1741207845862,-500.0,0.00039178,9]
[355503724,1741207845871,-500.0,0.00039178,9]
[355503726,1741207845880,-500.0,0.00039178,9]
[355503727,1741207845889,-1707.61,0.00039178,9]
[355503729,1741207845898,-1509.18,0.00039178,9]
[355503731,1741207845907,-500.0,0.00039178,9]
[355503733,1741207845916,-500.0,0.00039178,9]
[355503734,1741207845926,-500.0,0.00039178,9]
[355503736,1741207845934,-3741.97,0.00039178,9]
[355503738,1741207845943,-500.0,0.00039178,9]
[355503740,1741207845953,-1075.02,0.00039178,9]
[355503742,1741207845962,-1124.74,0.00039178,9]
[355503744,1741207845971,-592.13,0.00039178,9]
[355503746,1741207845980,-26395.19,0.00039178,7]
[355503748,1741207845990,-500.0,0.00039178,9]
[355503749,1741207845999,-1720.33,0.00039178,9]
[355503751,1741207846008,-500.0,0.00039178,9]
[355503753,1741207846019,-500.0,0.00039178,9]
[355503755,1741207846029,-500.0,0.00039178,9]
[355503757,1741207846039,-629.3,0.00039178,9]
[355503759,1741207846049,-500.0,0.00039178,9]
[355503761,1741207846057,-905.36,0.00039178,9]
[355503762,1741207846066,-500.0,0.00039178,9]
[355503764,1741207846075,-520.64,0.00039178,9]
[355503766,1741207846084,-634.73,0.00039178,9]
[355503768,1741207846093,-500.0,0.00039178,9]
[355503770,1741207846102,-667.75,0.00039178,9]
[355503772,1741207846112,-500.0,0.00039178,9]
[355503774,1741207846121,-2881.98,0.00039178,9]
[355503776,1741207846130,-500.0,0.00039178,9]
[355503778,1741207846144,-749.96,0.00039178,9]
[355503780,1741207846153,-500.0,0.00039178,9]
[355503781,1741207846162,-4449.63,0.00039178,9]
[355503783,1741207846172,-2459.83,0.00039178,9]
[355503785,1741207846181,-500.0,0.00039178,9]
[355503786,1741207846190,-500.0,0.00039178,9]
[355503788,1741207846200,-500.0,0.00039178,9]
[355503790,1741207846210,-677.95,0.00039178,9]
[355503791,1741207846219,-200.0,0.000392,120]
[355503793,1741207846228,-500.0,0.00039452,9]
[355503795,1741207846237,-500.0,0.00039452,9]
[355503797,1741207846246,-500.0,0.00039452,9]
[355503799,1741207846256,-500.0,0.00039452,9]
[355503801,1741207846268,-500.0,0.00039452,9]
[355503802,1741207846277,-500.0,0.00039452,9]
[355503804,1741207846286,-500.0,0.00039452,9]
[355503806,1741207846295,-550.5,0.00039452,9]
[355503808,1741207846305,-500.0,0.00039452,9]
[355503809,1741207846314,-500.0,0.00039452,9]
[355503811,1741207846323,-500.0,0.00039452,9]
[355503813,1741207846332,-500.0,0.00039452,9]
[355503815,1741207846341,-500.0,0.00039452,9]
[355503817,1741207846350,-500.0,0.00039452,9]
[355503819,1741207846359,-500.0,0.00039452,9]
[355503820,1741207846368,-500.0,0.00039452,9]
[355503822,1741207846377,-500.0,0.00039452,9]
[355503824,1741207846386,-500.0,0.00039452,9]
[355503826,1741207846395,-500.0,0.00039452,9]
[355503828,1741207846405,-500.0,0.00039452,9]
[355503829,1741207846414,-500.0,0.00039452,9]
[355503831,1741207846423,-500.0,0.00039452,9]
[355503833,1741207846432,-336.31836377,0.00039452,9]
[355503835,1741207846441,-500.0,0.00039452,9]
[355503837,1741207846450,-500.0,0.00039452,9]
[355503839,1741207846459,-500.0,0.00039452,9]
[355503840,1741207846468,-500.0,0.00039452,9]
[355503842,1741207846478,-500.0,0.00039452,9]
[355503844,1741207846487,-500.0,0.00039452,9]
[355503846,1741207846496,-1798.42,0.00039452,9]
[355503848,1741207846506,-500.0,0.00039452,9]
[355503850,1741207846517,-509.48,0.00039452,9]
[355503852,1741207846527,-500.0,0.00039452,9]
[355503854,1741207846536,-500.0,0.00039452,9]
[355503855,1741207846545,-500.0,0.00039452,9]
[355503857,1741207846554,-500.0,0.00039452,9]
[355503859,1741207846564,-500.0,0.00039452,9]
[355503861,1741207846573,-500.0,0.00039452,9]
[355503863,1741207846583,-500.0,0.00039452,9]
[355503865,1741207846592,-500.0,0.00039452,9]
[355503867,1741207846602,-500.0,0.00039452,9]
[355503868,1741207846611,-581.98215143,0.00039452,9]
[355503870,1741207846620,-500.0,0.00039452,9]
[355503872,1741207846629,-500.0,0.00039452,9]
[355503874,1741207846639,-500.0,0.00039452,9]
[355503876,1741207846649,-500.0,0.00039452,9]
[355503878,1741207846658,-1970.49,0.00039452,9]
[355503880,1741207846667,-500.0,0.00039452,9]
[355503881,1741207846676,-500.0,0.00039452,9]
[355503883,1741207846685,-500.0,0.00039452,9]
[355503885,1741207846695,-500.0,0.00039452,9]
[355503887,1741207846705,-1707.61,0.00039452,9]
[355503889,1741207846715,-1509.18,0.00039452,9]
[355503891,1741207846725,-500.0,0.00039452,9]
[355503893,1741207846736,-500.0,0.00039452,9]
[355503895,1741207846747,-500.0,0.00039452,9]
[355503897,1741207846758,-3741.97,0.00039452,9]
[355503899,1741207846769,-500.0,0.00039452,9]
[355503901,1741207846779,-1075.02,0.00039452,9]
[355503903,1741207846789,-1124.74,0.00039452,9]
[355503905,1741207846798,-26395.19,0.00039452,7]
[355503907,1741207846807,-500.0,0.00039452,9]
[355503908,1741207846819,-1720.33,0.00039452,9]
[355503910,1741207846829,-500.0,0.00039452,9]
[355503912,1741207846839,-500.0,0.00039452,9]
[355503914,1741207846848,-500.0,0.00039452,9]
[355503916,1741207846858,-629.3,0.00039452,9]
[355503918,1741207846867,-500.0,0.00039452,9]
[355503920,1741207846877,-905.36,0.00039452,9]
[355503922,1741207846887,-500.0,0.00039452,9]
[355503924,1741207846896,-520.64,0.00039452,9]
[355503926,1741207846906,-634.73,0.00039452,9]
[355503928,1741207846918,-500.0,0.00039452,9]
[355503930,1741207846928,-667.75,0.00039452,9]
[355503932,1741207846938,-500.0,0.00039452,9]
[355503934,1741207846947,-2881.98,0.00039452,9]
[355503936,1741207846958,-500.0,0.00039452,9]
[355503938,1741207846967,-749.96,0.00039452,9]
[355503940,1741207846976,-500.0,0.00039452,9]
[355503942,1741207846986,-4449.63,0.00039452,9]
[355503944,1741207846995,-2459.83,0.00039452,9]
[355503945,1741207847005,-645.54341017,0.00039452,9]
[355503947,1741207847015,-500.0,0.00039452,9]
[355503949,1741207847025,-500.0,0.00039452,9]
[355503951,1741207847035,-677.95,0.00039452,9]
[355503953,1741207847044,-216.89,0.00039625,2]
[355503955,1741207847054,-500.0,0.00039726,9]
[355503957,1741207847064,-329.8715437,0.00039726,9]
[355503958,1741207847074,-500.0,0.00039726,9]
[355503960,1741207847083,-500.0,0.00039726,9]
[355503962,1741207847093,-500.0,0.00039726,9]
[355503964,1741207847103,-500.0,0.00039726,9]
[355503966,1741207847112,-500.0,0.00039726,9]
[355503968,1741207847122,-550.5,0.00039726,9]
[355503970,1741207847131,-500.0,0.00039726,9]
[355503972,1741207847140,-500.0,0.00039726,9]
[355503973,1741207847149,-500.0,0.00039726,9]
[355503975,1741207847158,-500.0,0.00039726,9]
[355503977,1741207847168,-500.0,0.00039726,9]
[355503979,1741207847177,-500.0,0.00039726,9]
[355503981,1741207847187,-500.0,0.00039726,9]
[355503983,1741207847197,-500.0,0.00039726,9]
[355503985,1741207847207,-500.0,0.00039726,9]
[355503987,1741207847216,-500.0,0.00039726,9]
[355503989,1741207847225,-500.0,0.00039726,9]
[355503990,1741207847235,-500.0,0.00039726,9]
[355503992,1741207847245,-500.0,0.00039726,9]
[355503994,1741207847254,-500.0,0.00039726,9]
[355503996,1741207847264,-500.0,0.00039726,9]
[355503998,1741207847273,-500.0,0.00039726,9]
[355504000,1741207847283,-500.0,0.00039726,9]
[355504002,1741207847292,-500.0,0.00039726,9]
[355504004,1741207847302,-500.0,0.00039726,9]
[355504006,1741207847314,-500.0,0.00039726,9]
[355504007,1741207847322,-1798.42,0.00039726,9]
[355504009,1741207847330,-500.0,0.00039726,9]
[355504011,1741207847336,-509.48,0.00039726,9]
[355504012,1741207847343,-500.0,0.00039726,9]
[355504014,1741207847351,-500.0,0.00039726,9]
[355504016,1741207847360,-500.0,0.00039726,9]
[355504017,1741207847369,-500.0,0.00039726,9]
[355504018,1741207847378,-500.0,0.00039726,9]
[355504019,1741207847388,-500.0,0.00039726,9]
[355504020,1741207847397,-500.0,0.00039726,9]
[355504021,1741207847407,-500.0,0.00039726,9]
[355504022,1741207847417,-500.0,0.00039726,9]
[355504023,1741207847426,-500.0,0.00039726,9]
[355504024,1741207847436,-500.0,0.00039726,9]
[355504025,1741207847446,-500.0,0.00039726,9]
[355504026,1741207847455,-500.0,0.00039726,9]
[355504027,1741207847464,-1970.49,0.00039726,9]
[355504028,1741207847474,-500.0,0.00039726,9]
[355504029,1741207847483,-500.0,0.00039726,9]
[355504030,1741207847493,-500.0,0.00039726,9]
[355504031,1741207847502,-500.0,0.00039726,9]
[355504032,1741207847512,-1707.61,0.00039726,9]
[355504033,1741207847522,-1509.18,0.00039726,9]
[355504034,1741207847531,-500.0,0.00039726,9]
[355504035,1741207847541,-500.0,0.00039726,9]
[355504036,1741207847550,-285.39430219,0.00039726,9]
[355504037,1741207847560,-3741.97,0.00039726,9]
[355504038,1741207847569,-500.0,0.00039726,9]
[355504039,1741207847579,-1075.02,0.00039726,9]
[355504040,1741207847588,-1124.74,0.00039726,9]
[355504041,1741207847597,-26395.19,0.00039726,7]
[355504042,1741207847607,-193.63881767,0.00039726,9]
[355504043,1741207847617,-1720.33,0.00039726,9]
[355504044,1741207847627,-500.0,0.00039726,9]
[355504045,1741207847637,-500.0,0.00039726,9]
[355504046,1741207847647,-500.0,0.00039726,9]
[355504047,1741207847657,-629.3,0.00039726,9]
[355504048,1741207847673,-500.0,0.00039726,9]
[355504049,1741207847687,-905.36,0.00039726,9]
[355504050,1741207847697,-500.0,0.00039726,9]
[355504051,1741207847707,-520.64,0.00039726,9]
[355504052,1741207847717,-634.73,0.00039726,9]
[355504053,1741207847727,-500.0,0.00039726,9]
[355504054,1741207847737,-667.75,0.00039726,9]
[355504055,1741207847753,-500.0,0.00039726,9]
[355504056,1741207847765,-2881.98,0.00039726,9]
[355504057,1741207847775,-500.0,0.00039726,9]
[355504058,1741207847786,-749.96,0.00039726,9]
[355504059,1741207847796,-500.0,0.00039726,9]
[355504060,1741207847806,-4449.63,0.00039726,9]
[355504061,1741207847816,-2459.83,0.00039726,9]
[355504062,1741207847828,-500.0,0.00039726,9]
[355504063,1741207847838,-340.72298671,0.00039726,9]
[355504064,1741207847848,-677.95,0.00039726,9]
[355504065,1741207847858,-632.66352757,0.000398,60]
[355504066,1741207847868,-167.29182216,0.000399,120]
[355504067,1741207847878,-3000.0,0.000399,2]
[355504068,1741207847888,-100996.29299325,0.0004,30]
[355504069,1741207847898,-500.0,0.0004,9]
[355504071,1741207847908,-500.0,0.0004,9]
[355504072,1741207847918,-500.0,0.0004,9]
[355504074,1741207847928,-500.0,0.0004,9]
[355504076,1741207847938,-342.8726704,0.0004,9]
[355504078,1741207847948,-500.0,0.0004,9]
[355504080,1741207847958,-550.5,0.0004,9]
[355504082,1741207847968,-500.0,0.0004,9]
[355504084,1741207847978,-500.0,0.0004,9]
[355504086,1741207847988,-500.0,0.0004,9]
[355504088,1741207847998,-500.0,0.0004,9]
[355504090,1741207848009,-500.0,0.0004,9]
[355504092,1741207848020,-500.0,0.0004,9]
[355504094,1741207848030,-500.0,0.0004,9]
[355504096,1741207848039,-287.85410935,0.0004,9]
[355504098,1741207848049,-181.24713355,0.0004,9]
[355504100,1741207848059,-500.0,0.0004,9]
[355504102,1741207848070,-500.0,0.0004,9]
[355504104,1741207848080,-500.0,0.0004,9]
[355504106,1741207848090,-500.0,0.0004,9]
[355504108,1741207848100,-297.28670716,0.0004,9]
[355504110,1741207848111,-500.0,0.0004,9]
[355504112,1741207848121,-500.0,0.0004,9]
[355504114,1741207848132,-500.0,0.0004,9]
[355504117,1741207848143,-500.0,0.0004,9]
[355504119,1741207848162,-500.0,0.0004,9]
[355504120,1741207848173,-500.0,0.0004,9]
[355504122,1741207848184,-1798.42,0.0004,9]
[355504124,1741207848195,-500.0,0.0004,9]
[355504127,1741207848205,-509.48,0.0004,9]
[355504129,1741207848216,-500.0,0.0004,9]
[355504130,1741207848227,-500.0,0.0004,9]
[355504133,1741207848238,-500.0,0.0004,9]
[355504135,1741207848248,-478.9592152,0.0004,9]
[355504136,1741207848258,-500.0,0.0004,9]
[355504139,1741207848269,-500.0,0.0004,9]
[355504141,1741207848279,-500.0,0.0004,9]
[355504142,1741207848289,-500.0,0.0004,9]
[355504145,1741207848300,-308.76195748,0.0004,9]
[355504147,1741207848310,-500.0,0.0004,9]
[355504149,1741207848320,-500.0,0.0004,9]
[355504151,1741207848330,-500.0,0.0004,9]
[355504153,1741207848340,-500.0,0.0004,9]
[355504155,1741207848351,-1970.49,0.0004,9]
[355504157,1741207848361,-500.0,0.0004,9]
[355504159,1741207848370,-500.0,0.0004,9]
[355504161,1741207848380,-500.0,0.0004,9]
[355504163,1741207848391,-500.0,0.0004,9]
[355504165,1741207848401,-1707.61,0.0004,9]
[355504167,1741207848411,-1509.18,0.0004,9]
[355504169,1741207848421,-500.0,0.0004,9]
[355504171,1741207848431,-500.0,0.0004,9]
[355504173,1741207848441,-3741.97,0.0004,9]
[355504175,1741207848452,-500.0,0.0004,9]
[355504177,1741207848462,-1075.02,0.0004,9]
[355504179,1741207848472,-1124.74,0.0004,9]
[355504181,1741207848482,-26395.19,0.0004,7]
[355504183,1741207848493,-1720.33,0.0004,9]
[355504185,1741207848503,-500.0,0.0004,9]
[355504187,1741207848513,-500.0,0.0004,9]
[355504189,1741207848523,-500.0,0.0004,9]
[355504191,1741207848533,-629.3,0.0004,9]
[355504193,1741207848543,-500.0,0.0004,9]
[355504195,1741207848553,-905.36,0.0004,9]
[355504197,1741207848564,-578.51997894,0.0004,9]
[355504199,1741207848574,-520.64,0.0004,9]
[355504201,1741207848585,-634.73,0.0004,9]
[355504203,1741207848595,-500.0,0.0004,9]
[355504205,1741207848605,-667.75,0.0004,9]
[355504207,1741207848615,-2881.98,0.0004,9]
[355504209,1741207848625,-500.0,0.0004,9]
[355504211,1741207848636,-500.0,0.0004,9]
[355504213,1741207848646,-749.96,0.0004,9]
[355504215,1741207848655,-500.0,0.0004,9]
[355504218,1741207848667,-4449.63,0.0004,9]
[355504219,1741207848677,-2459.83,0.0004,9]
[355504221,1741207848687,-500.0,0.0004,9]
[355504223,1741207848697,-677.95,0.0004,9]
[355504226,1741207848707,-151.0,0.000401,19]
[355504228,1741207848717,-553.421,0.0004023,2]
[355504230,1741207848727,-242.702,0.0004023,2]
[355504232,1741207848739,-1507.0,0.0004023,2]
[355504234,1741207848752,-500.0,0.00040273,9]
[355504236,1741207848763,-500.0,0.00040273,9]
[355504238,1741207848773,-500.0,0.00040273,9]
[355504240,1741207848784,-186.93962864,0.00040273,9]
[355504242,1741207848794,-500.0,0.00040273,9]
[355504244,1741207848804,-550.5,0.00040273,9]
[355504246,1741207848815,-500.0,0.00040273,9]
[355504248,1741207848826,-500.0,0.00040273,9]
[355504250,1741207848837,-392.68455093,0.00040273,9]
[355504252,1741207848846,-500.0,0.00040273,9]
[355504254,1741207848857,-500.0,0.00040273,9]
[355504256,1741207848867,-500.0,0.00040273,9]
[355504258,1741207848876,-500.0,0.00040273,9]
[355504260,1741207848887,-500.0,0.00040273,9]
[355504262,1741207848897,-500.0,0.00040273,9]
[355504264,1741207848906,-500.0,0.00040273,9]
[355504266,1741207848917,-500.0,0.00040273,9]
[355504268,1741207848927,-500.0,0.00040273,9]
[355504270,1741207848938,-546.33559315,0.00040273,9]
[355504272,1741207848949,-500.0,0.00040273,9]
[355504274,1741207848959,-500.0,0.00040273,9]
[355504276,1741207848970,-500.0,0.00040273,9]
[355504278,1741207848980,-500.0,0.00040273,9]
[355504280,1741207848991,-1798.42,0.00040273,9]
[355504282,1741207849002,-581.94115189,0.00040273,9]
[355504299,1741207849135,-509.48,0.00040273,9]
[355504301,1741207849161,-500.0,0.00040273,9]
[355504304,1741207849171,-500.0,0.00040273,9]
[355504306,1741207849181,-500.0,0.00040273,9]
[355504308,1741207849191,-500.0,0.00040273,9]
[355504310,1741207849201,-500.0,0.00040273,9]
[355504312,1741207849211,-500.0,0.00040273,9]
[355504314,1741207849221,-500.0,0.00040273,9]
[355504315,1741207849230,-151.0,0.00040273,14]
[355504317,1741207849240,-500.0,0.00040273,9]
[355504319,1741207849250,-500.0,0.00040273,9]
[355504321,1741207849259,-151.0,0.00040273,14]
[355504324,1741207849270,-151.0,0.00040273,14]
[355504325,1741207849280,-153.734265,0.00040273,14]
[355504327,1741207849290,-151.0,0.00040273,14]
[355504329,1741207849299,-500.0,0.00040273,9]
[355504331,1741207849309,-500.0,0.00040273,9]
[355504333,1741207849319,-151.0,0.00040273,14]
[355504335,1741207849329,-1970.49,0.00040273,9]
[355504337,1741207849339,-151.0,0.00040273,14]
[355504339,1741207849349,-500.0,0.00040273,9]
[355504341,1741207849359,-500.0,0.00040273,9]
[355504343,1741207849368,-500.0,0.00040273,9]
[355504345,1741207849378,-500.0,0.00040273,9]
[355504347,1741207849388,-1707.61,0.00040273,9]
[355504349,1741207849398,-1509.18,0.00040273,9]
[355504351,1741207849408,-500.0,0.00040273,9]
[355504353,1741207849417,-151.0,0.00040273,14]
[355504355,1741207849427,-154.13542,0.00040273,14]
[355504357,1741207849436,-500.0,0.00040273,9]
[355504359,1741207849446,-3741.97,0.00040273,9]
[355504361,1741207849455,-500.0,0.00040273,9]
[355504363,1741207849464,-1075.02,0.00040273,9]
[355504365,1741207849474,-1124.74,0.00040273,9]
[355504367,1741207849484,-26395.19,0.00040273,7]
[355504369,1741207849494,-1720.33,0.00040273,9]
[355504371,1741207849504,-500.0,0.00040273,9]
[355504373,1741207849513,-500.0,0.00040273,9]
[355504375,1741207849523,-500.0,0.00040273,9]
[355504377,1741207849533,-629.3,0.00040273,9]
[355504379,1741207849542,-500.0,0.00040273,9]
[355504381,1741207849552,-905.36,0.00040273,9]
[355504383,1741207849561,-520.64,0.00040273,9]
[355504385,1741207849570,-634.73,0.00040273,9]
[355504387,1741207849580,-325.09033794,0.00040273,9]
[355504389,1741207849589,-218.192164,0.00040273,14]
[355504391,1741207849598,-667.75,0.00040273,9]
[355504393,1741207849607,-2881.98,0.00040273,9]
[355504395,1741207849617,-500.0,0.00040273,9]
[355504397,1741207849626,-218.192164,0.00040273,14]
[355504399,1741207849636,-500.0,0.00040273,9]
[355504401,1741207849645,-749.96,0.00040273,9]
[355504403,1741207849654,-169.050235,0.00040273,14]
[355504405,1741207849664,-500.0,0.00040273,9]
[355504407,1741207849674,-169.050235,0.00040273,14]
[355504409,1741207849683,-4449.63,0.00040273,9]
[355504411,1741207849693,-2459.83,0.00040273,9]